Cogmind - Beta 11.1 @@@ ROGUE MODE // 2022.05.19 @ 03:32:51 Player: Bish Result: Destroyed by as-44633 with Assembled Maul Performance ------------- Evolutions (0) 0 Regions Visited (3) 600 Robots Destroyed (41) 205 Value Destroyed (778) 778 Prototype IDs (26) 520 Alien Tech Used (0) 0 Bonus (258) 258 TOTAL SCORE: 2361 Bonus ------- Aligned with FarCom 300 Friendly Fire -42 Cogmind --------- Core Integrity 0/250 Matter 270/300 Energy 100/100 System Corruption 10% Temperature Cool (30) Movement Treading (160) Location -10/Exiles Parts ------- > --- POWER (1) -------- (None) > --- PROPULSION (2) --- Light Treads > --- UTILITY (2) ------ (None) > --- WEAPON (2) ------- YOLO Cannon > --- INVENTORY (5) ---- Heavy Ion Engine Peak State ------------ > --- POWER ------------ Heavy Ion Engine > --- PROPULSION ------- Light Treads Light Treads > --- UTILITY ---------- Improved Heat Sink Light Armor Plating > --- WEAPON ----------- YOLO Cannon > --- INVENTORY -------- Heavy Ion Engine Superbattery Deploy-a-Sentry Deploy-a-Sentry Deploy-a-Sentry [Rating: 32] Favorites ----------- Power Heavy Ion Engine Engine Heavy Ion Engine Propulsion Light Treads Treads Light Treads Leg Aluminum Leg Hover Unit Backup Propulsion I Utility Light Armor Plating Device Improved Heat Sink Storage Large Storage Unit Protection Light Armor Plating Weapon Heavy Assault Rifle Energy Gun Medium Laser Energy Cannon YOLO Cannon Ballistic Gun Heavy Assault Rifle Ballistic Cannon Light Cannon Launcher Grenade Launcher Build | -11 -10 -10 -10 ------- Run | Scr Mat Min Exi Slots Evolved . | . . . . Power . | . . . . Propulsion . | . . . . Utility . | . . . . Weapon . | . . . . Parts Attached 30 | 2 22 3 3 Power 5 | . 4 . 1 Engine 5 | . 4 . 1 Core . | . . . . Reactor . | . . . . Propulsion 4 | . 4 . . Treads 4 | . 4 . . Leg . | . . . . Wheel . | . . . . Hover . | . . . . Flight . | . . . . Utility 11 | 2 8 . 1 Device 4 | 2 1 . 1 Storage 3 | . 3 . . Processor . | . . . . Hackware . | . . . . Protection 4 | . 4 . . Artifact . | . . . . Weapon 10 | . 6 3 1 Energy Gun 1 | . 1 . . Energy Cannon 1 | . . . 1 Ballistic Gun 4 | . 3 1 . Ballistic Cannon 2 | . 2 . . Launcher 2 | . . 2 . Special Weapon . | . . . . Impact Weapon . | . . . . Slashing Weapon . | . . . . Piercing Weapon . | . . . . Special Melee Weapon . | . . . . Unidentified Prototypes 1 | . 1 . . Parts Lost 6 | . 1 1 4 Power 1 | . . . 1 Propulsion 1 | . . . 1 Utility 3 | . 1 . 2 Weapon 1 | . . 1 . Highest Loss Streak 4 | . 1 1 4 To Critical Strikes . | . . . . Average Slot Usage (%) 98 | . 99 100 89 Engine 13 | . 13 14 13 Treads 24 | . 21 28 27 Leg 3 | . 6 . . Device 1 | . 2 . 6 Storage 13 | . 14 14 7 Protection 12 | . 11 14 13 Energy Gun 3 | . 7 . . Ballistic Gun 16 | . 14 23 6 Ballistic Cannon 2 | . 5 . . Launcher 2 | . . 4 6 Naked Turns . | . . . . Heaviest Build 49 | 14 37 37 49 Greatest Support 40 | 20 40 40 40 Greatest Overweight (x) 1 | . 1 . 1 Average Overweight (x) . | . . . . Largest Inventory Capacity 15 | 8 15 15 15 Average Capacity 13 | 8 13 15 10 Most Carried 15 | 8 15 15 15 Average Carried 12 | 6 12 14 9 Final Capacity 15 | 8 15 15 5 Final Carried 15 | 8 14 15 1 Class Distribution -------------------- 100% | Mutant Dominant Class ---------------- Mutant | -10/Materials Mutant | -10/Mines Mutant | -10/Exiles Resources | -11 -10 -10 -10 ----------- Run | Scr Mat Min Exi Matter Collected 1029 | 210 548 271 . Remotely 51 | . 51 . . Salvage Created 1066 | 90 722 226 28 Parts 75 | 9 45 21 . Haulers Intercepted 1 | . 1 . . Recyclers Shooed . | . . . . Parts Field Recycled . | . . . . Retrieved Matter . | . . . . Parts Self-Destructed . | . . . . Prevented . | . . . . Kills | -11 -10 -10 -10 ------- Run | Scr Mat Min Exi Combat Hostiles Destroyed 30 | . 16 11 3 Guns 13 | . 8 5 . Cannons 9 | . 8 . 1 AOE 8 | . . 6 2 Classes Destroyed 10 | 2 7 1 . Worker 2 | . 1 1 . Builder 1 | . 1 . . Tunneler 4 | 2 . 2 . Hauler 1 | . 1 . . Recycler 2 | 1 1 . . Operator 2 | . 2 . . Watcher 3 | . 3 . . Swarmer 12 | . 6 6 . Grunt 14 | . 10 4 . Assembled 4 | . . 1 3 Best Kill Streak 4 | 1 4 3 3 Combat Bots Only 3 | . 3 3 3 Max Kills in Single Turn 3 | 1 1 3 3 Gunslinging . | . . . . Exploded 3 | . . 3 2 Melee . | . . . . Uniques/NPCs Destroyed . | . . . . Combat | -11 -10 -10 -10 -------- Run | Scr Mat Min Exi Damage Taken 1777 | . 910 273 594 Core 253 | . 83 60 110 Absorbed by Shields . | . . . . Regen/Repaired (Parts) 132 | . 132 . . Core Remaining (%) 100 | 100 . . . Volleys Fired 109 | 9 74 18 8 Largest 2 | 2 2 2 1 Hottest 100 | 90 85 46 100 Shots Fired 195 | 18 143 27 7 Gun 137 | 18 99 20 . Cannon 51 | . 44 . 7 Launcher 7 | . . 7 . Special . | . . . . Kinetic 124 | . 104 20 . Thermal 64 | 18 39 . 7 Explosive 7 | . . 7 . Electromagnetic . | . . . . Robot Hit Streak 7 | 4 7 6 3 Robot Miss Streak 7 | 7 5 1 1 Penetration Max . | . . . . Secondary Targets 1 | . 1 . . Max Gunslinging Chain 1 | . 1 . . Shots Hit Robots 100 | 7 75 13 5 Core Hits 60 | 4 33 16 7 Critical Kills . | . . . . Critical Parts Destroyed 1 | . 1 . . Critical Strikes 2 | . 2 . . Burn 1 | . 1 . . Destroy 1 | . 1 . . Melee Attacks . | . . . . Impact . | . . . . Slashing . | . . . . Piercing . | . . . . Sneak Attacks . | . . . . Combat Hostiles . | . . . . Follow-up Attacks . | . . . . Damage Inflicted 2421 | 82 1173 621 545 Guns 1032 | 82 763 187 . Cannons 566 | . 389 . 177 Explosions 797 | . . 429 368 Melee . | . . . . Ramming 26 | . 21 5 . Kinetic 1138 | . 951 187 . Thermal 828 | 82 201 . 545 Explosive 429 | . . 429 . Electromagnetic . | . . . . Impact . | . . . . Slashing . | . . . . Piercing . | . . . . Highest Corruption 10 | . . . 10 Average Corruption 3 | . . . 3 Corruption Purged . | . . . . Corruption Blocked . | . . . . Effects 1 | . . . 1 Weapon Failures 1 | . . . 1 Overload Shots . | . . . . Overflow Damage 17 | . 15 2 . Projectiles 15 | . 15 . . Explosions 2 | . . 2 . Melee . | . . . . Knockbacks 6 | . 6 . . Impact . | . . . . Kinetic 5 | . 5 . . Secondary 1 | . 1 . . Self-Inflicted Damage 164 | . . 164 . Shots 5 | . . 5 . Rammed 6 | . 5 1 . Targets Rammed 6 | . 5 1 . Kicked . | . . . . Crushed . | . . . . Highest Temperature 240 | 90 240 9 30 Average Temperature 76 | 36 86 5 22 Received Heat Transfer 354 | . 336 18 . Effects 5 | . 5 . . Energy Bleed 1 | . 1 . . Interference 4 | . 4 . . Siege Activations . | . . . . Robots Corrupted . | . . . . Combat Hostiles . | . . . . Parts Fried . | . . . . Impact Corruptions . | . . . . Robots Melted . | . . . . Combat Hostiles . | . . . . Parts Melted 4 | 2 2 . . Heat Transferred 1657 | 211 666 . 780 Parts Sabotaged . | . . . . Parts Stolen . | . . . . Parts Stripped . | . . . . Power Chain Reactions . | . . . . Missiles Intercepted . | . . . . Alert | -11 -10 -10 -10 ------- Run | Scr Mat Min Exi Peak Influence 302 | 15 302 236 . Initial 88 | . 9 88 . Average 126 | 8 155 99 . Maximum Alert Level 1 | . 1 1 . Low Security (%) 76 | 100 59 94 . Level 1 23 | . 40 5 . Level 2 . | . . . . Level 3 . | . . . . Level 4 . | . . . . Level 5 . | . . . . High Security . | . . . . Max Security . | . . . . Squads Dispatched 7 | . 7 . . Investigation 5 | . 5 . . Extermination . | . . . . Reinforcement 2 | . 2 . . Assault . | . . . . Garrison . | . . . . Intercept . | . . . . Searches Triggered . | . . . . Construction Impeded . | . . . . Haulers Reinforced . | . . . . Active Scanning Responses . | . . . . Cargo Convoy Interrupts . | . . . . Stealth | -11 -10 -10 -10 --------- Run | Scr Mat Min Exi Distress Signals 2 | . 2 . . Communications Jammed . | . . . . Distress Signals . | . . . . Times Spotted 48 | . 25 10 13 Peak Tracking Total 9 | . 4 3 9 Tactical Retreats . | . . . . Traps | -11 -10 -10 -10 ------- Run | Scr Mat Min Exi Traps Triggered 3 | . 3 . . Indirectly . | . . . . Trap Hack Attempts . | . . . . Triggered . | . . . . Disarmed . | . . . . Reprogrammed . | . . . . Reused . | . . . . Traps Extracted . | . . . . Installed . | . . . . Triggered . | . . . . Machines | -11 -10 -10 -10 ---------- Run | Scr Mat Min Exi Machines Disabled 6 | . 1 3 2 Max in Single Turn 2 | . 1 1 2 Machines Sabotaged . | . . . . Garrisons Compromised . | . . . . Overloaded Fab Kills . | . . . . Hacking | -11 -10 -10 -10 --------- Run | Scr Mat Min Exi Machines Accessed 10 | . 9 . 1 Terminals 6 | . 6 . . Fabricators . | . . . . Repair Stations 1 | . 1 . . Recycling Units 2 | . 2 . . Scanalyzers . | . . . . Garrison Access . | . . . . Total Hacks 27 | . 26 . 1 Successful 18 | . 17 . 1 Failed 9 | . 9 . . Catastrophic 1 | . 1 . . Database Lockouts . | . . . . Manual 18 | . 17 . 1 Terminals 18 | . 18 . . Fabricators . | . . . . Repair Stations 3 | . 3 . . Recycling Units 5 | . 5 . . Scanalyzers . | . . . . Garrison Access . | . . . . Terminal Hacks 7 | . 6 . 1 Robot Analysis 2 | . 2 . . Prototype ID Bank 1 | . 1 . . Terminal Index 1 | . 1 . . Recall Reinforcements 1 | . 1 . . Hauler Manifests 1 | . 1 . . EX-Prototype ID Bank 1 | . . . 1 Fabricator Hacks . | . . . . Repair Station Hacks 3 | . 3 . . Scan Component 1 | . 1 . . Repair 1 | . 1 . . Refit 1 | . 1 . . Recycling Unit Hacks 3 | . 3 . . Report Inventory 2 | . 2 . . Retrieve Matter 1 | . 1 . . Scanalyzer . | . . . . Garrison Access Hacks . | . . . . Unauthorized Hacks 5 | . 5 . . Terminals 3 | . 3 . . Botnet 2 | . 2 . . Operators 1 | . 1 . . Fabricators . | . . . . Repair Stations . | . . . . Recycling Units 2 | . 2 . . Tunnel 2 | . 2 . . Scanalyzers . | . . . . Garrison Access . | . . . . Data Cores Recovered . | . . . . Used . | . . . . Hacking Detections 7 | . 7 . . Full Trace Events 2 | . 2 . . Feedback Events . | . . . . Feedback Blocked . | . . . . Robot Schematics Acquired . | . . . . Robots Built . | . . . . Authchips . | . . . . Time . | . . . . Total Robot Build Rating . | . . . . Part Schematics Acquired . | . . . . Parts Built . | . . . . Authchips . | . . . . Time . | . . . . Total Part Build Rating . | . . . . Parts Repaired 1 | . 1 . . Time 26 | . 26 . . Parts Recycled . | . . . . Recycled Matter . | . . . . Retrieved Matter 79 | . 79 . . Retrieved Components . | . . . . Parts Scanalyzed . | . . . . Part Schematics Acquired . | . . . . Parts Damaged . | . . . . Bothacking | -11 -10 -10 -10 ------------ Run | Scr Mat Min Exi Used RIF Installer . | . . . . Robots Hacked . | . . . . Non-combat . | . . . . Combat . | . . . . Robot Hacks Applied . | . . . . Relay Couplers Released . | . . . . Fabnet Peak Effective % . | . . . . Robots Rewired . | . . . . Allies Hacked . | . . . . Hacks Repelled . | . . . . Allies | -11 -10 -10 -10 -------- Run | Scr Mat Min Exi Total Allies . | . . . . Largest Group . | . . . . Highest-Rated Group . | . . . . Highest-Rated Ally . | . . . . Total Orders . | . . . . Ally Attacks 9 | . . . 9 Total Damage 523 | . . . 523 Kills . | . . . . Allies Corrupted . | . . . . Allies Melted . | . . . . Turrets Deployed 3 | . . . 3 Intel | -11 -10 -10 -10 ------- Run | Scr Mat Min Exi Robot Analysis Total 2 | . 2 . . Derelict Logs Recovered 3 | . . 3 . Drone Launches . | . . . . Drone Recoveries . | . . . . Exploration | -11 -10 -10 -10 ------------- Run | Scr Mat Min Exi Turns Passed 2921 | 76 1359 1109 377 Spaces Moved 1531 | 37 637 657 200 Core . | . . . . Treads 1355 | . 498 657 200 Legs 176 | 37 139 . . Wheels . | . . . . Hover . | . . . . Flight . | . . . . Fastest Speed 120 | 120 120 160 160 Average Speed 160 | 120 162 160 161 Slowest Speed 240 | 120 240 160 240 Overloaded Moves . | . . . . Propulsion Burnouts . | . . . . Robots Hopped . | . . . . Cave-ins Triggered . | . . . . Exploration Rate (%) 56 | 4 95 85 40 Regions Visited 3 Branch Regions 2 Pre-discovered Areas 4 | . 2 2 . Known Exits Taken . | . . . . Unknown Exits Taken 3 | 1 1 1 . Scrap Searched 1 | . . 1 . Spaces Dug . | . . . . Terrain Destroyed 92 | . . 41 51 Melee . | . . . . Projectile 1 | . . . 1 AOE 91 | . . 41 50 Terrain Rammed . | . . . . Walls Destroyed . | . . . . Machines Disabled . | . . . . Actions | -11 -10 -10 -10 --------- Run | Scr Mat Min Exi Total 1796 | 50 823 687 236 Wait 44 | . 36 3 5 Move 1528 | 36 636 656 200 Hop . | . . . . Pick Up 34 | 3 22 4 5 Fast Attach 11 | . 10 . 1 Attach 5 | 1 3 1 . Detach 2 | . . . 2 Swap 14 | 1 9 2 2 Drop 43 | . 28 2 13 Fire 109 | 9 74 18 8 Melee . | . . . . Ram . | . . . . Kick . | . . . . Crush 6 | . 5 1 . Escape Stasis . | . . . . Rewire . | . . . . Trap . | . . . . Miscellaneous . | . . . . Route ------- -11/Scrapyard -10/Materials (discovered 4 exits: [*Mat x3] / [*Min]) -10/Mines (discovered 2 exits: [*Mat] / *Exi) -10/Exiles History --------- Turn | Location | Event 7 | -11/Scrapyard | Discovered new exit (range 3) 77 | -11/Scrapyard | Entered Materials 318 | -10/Materials | Build established: Mutant 436 | -10/Materials | Discovered new exit (range 7) 620 | -10/Materials | Discovered new exit (range 14) 1126 | -10/Materials | Discovered new exit (range 9) 1267 | -10/Materials | Discovered new exit (range 15) 1394 | -10/Materials | Repaired Lgt. Treads 1436 | -10/Materials | Entered Mines 1635 | -10/Mines | Deemed a non-threat by the Exiles lab entrance 1637 | -10/Mines | Discovered new exit (range 5) 1775 | -10/Mines | Excavation squad dispatched 1775 | -10/Mines | A large section of the Mines collapsed 1848 | -10/Mines | Learned location of 2 exits from Materials 1937 | -10/Mines | Learned location of Zion (-6) 2172 | -10/Mines | Discovered new exit (range 9) 2176 | -10/Mines | Core integrity fell below 50% 2545 | -10/Mines | Entered Exiles 2585 | -10/Exiles | Met 8R-AWN 2613 | -10/Exiles | Met EX-HEX 2659 | -10/Exiles | Met EX-BIN 2677 | -10/Exiles | Aligned with FarCom system 2678 | -10/Exiles | Given EX-Vault access code 2717 | -10/Exiles | Opened EX-Vault 2731 | -10/Exiles | Found YOLO Cannon 2743 | -10/Exiles | Found Superbattery 2753 | -10/Exiles | Found Deploy-a-Sentry 2757 | -10/Exiles | Found Deploy-a-Sentry 2759 | -10/Exiles | Found Deploy-a-Sentry 2796 | -10/Exiles | Warned to stay clear of 0b10 Research branches 2880 | -10/Exiles | DAS Turret deployed 2883 | -10/Exiles | DAS Turret deployed 2885 | -10/Exiles | DAS Turret deployed 2892 | -10/Exiles | Attacked by the Exiles 2920 | -10/Exiles | System corruption reached 10% 2921 | -10/Exiles | Core integrity fell below 20% 2922 | -10/Exiles | Destroyed by as-44633 with Assembled Maul Last Messages --------------- 02912_ HV Slug penetrates Wall. 02912_ Penetrated by HV Slug. 02912_ HV Slug penetrates Wall. 02914_ Imp. Heat Sink destroyed. 02914_ System corrupted by crushing effect (+3). 02914_ Penetrated by HV Slug. 02914_ HV Slug penetrates Wall. 02915_ Wall collapses. 02916_ Extracted 56 energy. 02917_ HV Slug penetrates Wall. 02917_ HV Slug penetrates as-29817. 02917_ as-29817 suffers critical hit (Destroy). 02917_ HV Slug penetrates as-44633. 02919_ Hvy. Ion Engine destroyed. 02919_ System corrupted by crushing effect (+5). 02919_ Penetrated by HV Slug. 02919_ HV Slug penetrates Wall. 02919_ Penetrated by HV Slug. 02919_ HV Slug penetrates Earth. 02920_ Extracted 65 energy. Map ----- +----------------------------------------------------+ | """#?????????????????????????????????????????????? | | """#?????????????????????????????????????????????? | | """#?????????????????????????????????????????????? | | """#?????????????????????????????????????????????? | | """"?????????????????????????????????????????????? | | """#?????????????????????????????????????????????? | | """"?????????????????????????????????????????????? | | #?????????????????????????????????????????????? | | """#?????????????????????????????????????????????? | | ####?????????????????????????????????????????????? | | ?????????????????????????????????????????????????? | | ?????????????????????????????????????????????????? | | ????????????????????????#####????????????????????? | | ##########?????????????## ##???????????????????? | | """""""""##???????????## ##??????????????????? | | " """ """"##??????????# #??????????????# ?? | | "" " #?????????## #?????????????# # | | " """#?????????# #????????????# | | " "#?????????# ?????????????# | | " "##????????# #????????????## | | ""###??????# g #???????????## #? | | """#??????# #???????????# #? | | "#????### ;##????????### #?? | | ##???# ########## #?? | | ##?## a #""""## #??? | | ### a@ tt * ##?? | | a a #;% * #?? | | ##;# ##? | | ""# ; " #### ## | | #"""###;######??#### * | | % ######?###??????????##### | | ##???????????????????????### | | " ##??????????????????????????### | | """ ""#?????????????????????????????### | | ""#" "##??????????????????????????????#" | | """##"""""""##???????????????????????????????#### | | """??#########???????????????????????????????????# | | #????????????????????????????????????????????????# | | ?????????????????????????????????????????????????? | | ?????????????????????????????????????????????????? | | ?????????????????????????????????????????????????? | | ?????????????????????????????????????????????????? | | ?????????????????????????????????????????????????? | | ?????????????????????????????????????????????????? | | ?????????????????????????????????????????????????? | | ?????????????????????????????????????????????????? | | ?????????????????????????????????????????????????? | | ?????????????????????????????????????????????????? | | ?????????????????????????????????????????????????? | | ?????????????????????????????????????????????????? | +----------------------------------------------------+ Best States ------------- Heat Dissipation 39 Energy Generation 14 Energy Capacity 280 Matter Stores 300 Matter Capacity 300 Sight Range 16 Terrain Scan Range 16 Terrain Scan Density 10 Armor Coverage 150 Evasion (%) 55 Recoil Reduction 2 Item Schematics ----------------- None Robot Schematics ------------------ None Fabricated ------------ Nothing Alien Tech Used ----------------- None Achievements -------------- None Challenges ------------ None Game ------ Seed PowerThrusterSystem Manual? 0 Play Time 00:22:59 Cumulative 63.0 hours Start 2022.05.19 @ 02:40:00 End 2022.05.19 @ 03:32:51 Sessions 1 Manual Loads 0 Difficulty Rogue Special Mode None Game No. 35 Rogue 35 Adventurer 0 Explorer 0 Win Type - Total 1 Types 1/0/0/0/0/0/0/0/0 Lore% 45 Gallery% 56 Achievement% 44 Wizard Run 0 Options --------- ASCII 0 Keyboard 0 Movement Mouse Keybinds 0 Fullscreen 1 Font 18/SmallcapsGlow Map View 76x50 Tactical HUD 1 Map Filters NONE Filters NONE Steam 1 RUN: a0132452-c0ea-46f8-ab90-b2552bcc6273